[Event "Titled Tuesday Blitz July 4 Late 2023"]
[White "Przybylski, Wojciech"]
[Black "Andreikin, Dmitry"]
[WhiteFideId "1117599"]
[BlackFideId "4158814"]
[WhiteElo "2555"]
[BlackElo "2968"]
[Result "0-1"]
[Round "2"]
[TimeControl "180+2"]
[Date "2023.07.04"]
[WhiteClock "0:00:00"]
[BlackClock "0:00:17"]
[Board "20"]

1. e4 {[%clk 0:03:00]}  c5 {[%clk 0:02:58]} 2. Nf3 {[%clk 0:03:00]}  e6 {[%clk 0:02:59]} 3. b3 {[%clk 0:02:59]}  b6 {[%clk 0:02:58]} 4. Bb2 {[%clk 0:02:58]}  Bb7 {[%clk 0:02:58]} 5. Qe2 {[%clk 0:02:56]}  Nf6 {[%clk 0:02:56]} 6. e5 {[%clk 0:02:56]}  Nd5 {[%clk 0:02:56]} 7. Nc3 {[%clk 0:02:57]}  Nc6 {[%clk 0:02:53]} 8. O-O-O {[%clk 0:02:41]}  Rc8 {[%clk 0:02:53]} 9. Kb1 {[%clk 0:02:39]}  Be7 {[%clk 0:02:49]} 10. Ne4 {[%clk 0:02:31]}  O-O {[%clk 0:02:46]} 11. g4 {[%clk 0:02:12]}  b5 {[%clk 0:02:33]} 12. g5 {[%clk 0:02:09]}  c4 {[%clk 0:02:23]} 13. Nf6+ {[%clk 0:02:04]}  Bxf6 {[%clk 0:02:02]} 14. gxf6 {[%clk 0:01:58]}  cxb3 {[%clk 0:01:59]} 15. cxb3 {[%clk 0:01:29]}  Qa5 {[%clk 0:01:51]} 16. Rg1 {[%clk 0:01:20]}  g6 {[%clk 0:01:51]} 17. Qxb5 {[%clk 0:01:09]}  Ndb4 {[%clk 0:01:41]} 18. a3 {[%clk 0:00:54]}  Nd5 {[%clk 0:01:39]} 19. Nd4 {[%clk 0:00:44]}  Qc7 {[%clk 0:01:32]} 20. Nxc6 {[%clk 0:00:38]}  Bxc6 {[%clk 0:01:33]} 21. Qc4 {[%clk 0:00:33]}  Qb7 {[%clk 0:01:28]} 22. Ka2 {[%clk 0:00:28]}  a5 {[%clk 0:01:17]} 23. Rg3 {[%clk 0:00:27]}  a4 {[%clk 0:01:13]} 24. Qh4 {[%clk 0:00:26]}  Nb4+ {[%clk 0:00:46]} 25. Qxb4 {[%clk 0:00:24]}  axb3+ {[%clk 0:00:46]} 26. Rxb3 {[%clk 0:00:18]}  Qa7 {[%clk 0:00:32]} 27. Bd4 {[%clk 0:00:17]}  Qa8 {[%clk 0:00:30]} 28. Bc4 {[%clk 0:00:11]}  Ba4 {[%clk 0:00:29]} 29. Rdb1 {[%clk 0:00:08]}  Bxb3+ {[%clk 0:00:28]} 30. Rxb3 {[%clk 0:00:08]}  Qe4 {[%clk 0:00:28]} 31. Qc3 {[%clk 0:00:07]}  d5 {[%clk 0:00:26]} 32. exd6 {[%clk 0:00:07]}  e5 {[%clk 0:00:26]} 33. Bb6 {[%clk 0:00:07]}  Rxc4 {[%clk 0:00:25]} 34. Qe3 {[%clk 0:00:07]}  Rc2+ {[%clk 0:00:22]} 35. Rb2 {[%clk 0:00:07]}  Qc4+ {[%clk 0:00:21]} 36. Qb3 {[%clk 0:00:06]}  Qxb3+ {[%clk 0:00:15]} 37. Kxb3 {[%clk 0:00:07]}  Rxb2+ {[%clk 0:00:16]} 38. Kxb2 {[%clk 0:00:03]}  Rb8 {[%clk 0:00:17]} 39. Kc3 {[%clk 0:00:00]}  Rxb6 {[%clk 0:00:17]} 0-1


[Site "https://www.chess.com"]

[Event "Titled Tuesday Blitz July 4 Late 2023"]
[White "Sadovsky, Artem"]
[Black "Makarian, Rudik"]
[WhiteFideId "4155840"]
[BlackFideId "44105681"]
[WhiteElo "2553"]
[BlackElo "2961"]
[Result "0-1"]
[Round "2"]
[TimeControl "180+2"]
[Date "2023.07.04"]
[WhiteClock "0:00:22"]
[BlackClock "0:00:51"]
[Board "22"]

1. Nf3 {[%clk 0:02:58]}  Nf6 {[%clk 0:02:58]} 2. e3 {[%clk 0:02:58]}  d5 {[%clk 0:02:58]} 3. Be2 {[%clk 0:02:58]}  g6 {[%clk 0:02:42]} 4. b3 {[%clk 0:02:56]}  Bg7 {[%clk 0:02:42]} 5. Bb2 {[%clk 0:02:57]}  O-O {[%clk 0:02:43]} 6. O-O {[%clk 0:02:57]}  c5 {[%clk 0:02:41]} 7. c4 {[%clk 0:02:56]}  d4 {[%clk 0:02:42]} 8. exd4 {[%clk 0:02:51]}  Nh5 {[%clk 0:02:40]} 9. Ne5 {[%clk 0:02:36]}  cxd4 {[%clk 0:02:20]} 10. Bxh5 {[%clk 0:02:36]}  Bxe5 {[%clk 0:02:20]} 11. Bf3 {[%clk 0:02:31]}  Nc6 {[%clk 0:02:20]} 12. Re1 {[%clk 0:02:28]}  Qc7 {[%clk 0:02:20]} 13. h3 {[%clk 0:02:06]}  Bf5 {[%clk 0:02:13]} 14. Qe2 {[%clk 0:01:58]}  Bf6 {[%clk 0:01:36]} 15. Bxc6 {[%clk 0:01:57]}  d3 {[%clk 0:01:31]} 16. Qf3 {[%clk 0:01:51]}  Bxb2 {[%clk 0:01:30]} 17. Bxb7 {[%clk 0:01:52]}  Rab8 {[%clk 0:01:28]} 18. Nc3 {[%clk 0:01:14]}  Bxa1 {[%clk 0:01:03]} 19. Nd5 {[%clk 0:01:13]}  Qxb7 {[%clk 0:01:03]} 20. Rxe7 {[%clk 0:01:08]}  Qa8 {[%clk 0:00:59]} 21. g4 {[%clk 0:00:38]}  Be6 {[%clk 0:00:58]} 22. Nf6+ {[%clk 0:00:31]}  Bxf6 {[%clk 0:00:57]} 23. Qxf6 {[%clk 0:00:31]}  Qe4 {[%clk 0:00:51]} 24. Qg7+ {[%clk 0:00:22]} 0-1


[Site "https://www.chess.com"]

[Event "Titled Tuesday Blitz July 4 Late 2023"]
[White "Oparin, Grigoriy"]
[Black "Ismagilov, Damir"]
[WhiteFideId "24125890"]
[BlackFideId "34199982"]
[WhiteElo "2950"]
[BlackElo "2552"]
[Result "1-0"]
[Round "2"]
[TimeControl "180+2"]
[Date "2023.07.04"]
[WhiteClock "0:01:15"]
[BlackClock "0:01:04"]
[Board "23"]

1. c4 {[%clk 0:03:00]}  c5 {[%clk 0:02:58]} 2. Nc3 {[%clk 0:03:01]}  Nc6 {[%clk 0:02:58]} 3. Nf3 {[%clk 0:03:02]}  g6 {[%clk 0:02:58]} 4. e3 {[%clk 0:03:01]}  Bg7 {[%clk 0:02:59]} 5. d4 {[%clk 0:03:02]}  cxd4 {[%clk 0:02:59]} 6. exd4 {[%clk 0:03:03]}  d6 {[%clk 0:02:59]} 7. d5 {[%clk 0:02:54]}  Ne5 {[%clk 0:02:57]} 8. Nxe5 {[%clk 0:02:48]}  Bxe5 {[%clk 0:02:57]} 9. Be2 {[%clk 0:02:49]}  Bg7 {[%clk 0:02:55]} 10. O-O {[%clk 0:02:49]}  Nf6 {[%clk 0:02:55]} 11. Re1 {[%clk 0:02:50]}  O-O {[%clk 0:02:55]} 12. h3 {[%clk 0:02:49]}  e5 {[%clk 0:02:48]} 13. dxe6 {[%clk 0:02:49]}  Bxe6 {[%clk 0:02:48]} 14. Bg5 {[%clk 0:02:27]}  Qa5 {[%clk 0:02:26]} 15. Qd2 {[%clk 0:02:24]}  d5 {[%clk 0:02:12]} 16. Qf4 {[%clk 0:01:41]}  Ne4 {[%clk 0:01:43]} 17. Nxd5 {[%clk 0:01:25]}  Bxd5 {[%clk 0:01:37]} 18. cxd5 {[%clk 0:01:26]}  Nxg5 {[%clk 0:01:37]} 19. Qxg5 {[%clk 0:01:26]}  Bxb2 {[%clk 0:01:35]} 20. Rab1 {[%clk 0:01:27]}  Bg7 {[%clk 0:01:28]} 21. Red1 {[%clk 0:01:21]}  Rad8 {[%clk 0:01:24]} 22. Rxb7 {[%clk 0:01:16]}  Qxa2 {[%clk 0:01:24]} 23. Bf3 {[%clk 0:01:13]}  a5 {[%clk 0:01:18]} 24. d6 {[%clk 0:01:11]}  a4 {[%clk 0:01:05]} 25. Rxf7 {[%clk 0:00:59]}  Rxf7 {[%clk 0:00:46]} 26. Qxd8+ {[%clk 0:00:59]}  Rf8 {[%clk 0:00:46]} 27. Bd5+ {[%clk 0:00:58]}  Qxd5 {[%clk 0:00:45]} 28. Qxf8+ {[%clk 0:00:58]}  Bxf8 {[%clk 0:00:45]} 29. Rxd5 {[%clk 0:00:59]}  a3 {[%clk 0:00:45]} 30. d7 {[%clk 0:00:58]}  a2 {[%clk 0:00:46]} 31. Ra5 {[%clk 0:00:58]}  Be7 {[%clk 0:00:46]} 32. Rxa2 {[%clk 0:00:58]}  Kf7 {[%clk 0:00:47]} 33. Ra8 {[%clk 0:00:59]}  Ke6 {[%clk 0:00:46]} 34. d8=Q {[%clk 0:01:00]}  Bxd8 {[%clk 0:00:47]} 35. Rxd8 {[%clk 0:01:00]}  Kf6 {[%clk 0:00:47]} 36. Rd7 {[%clk 0:01:00]}  h5 {[%clk 0:00:47]} 37. h4 {[%clk 0:01:01]}  g5 {[%clk 0:00:47]} 38. hxg5+ {[%clk 0:01:00]}  Kxg5 {[%clk 0:00:48]} 39. Rd5+ {[%clk 0:01:00]}  Kg6 {[%clk 0:00:49]} 40. Kh2 {[%clk 0:01:00]}  h4 {[%clk 0:00:49]} 41. Kh3 {[%clk 0:01:01]}  Kf6 {[%clk 0:00:50]} 42. Kxh4 {[%clk 0:01:02]}  Kg6 {[%clk 0:00:51]} 43. Rg5+ {[%clk 0:01:03]}  Kf7 {[%clk 0:00:52]} 44. f4 {[%clk 0:01:04]}  Ke6 {[%clk 0:00:52]} 45. g4 {[%clk 0:01:05]}  Ke7 {[%clk 0:00:53]} 46. Kh5 {[%clk 0:01:05]}  Kf6 {[%clk 0:00:54]} 47. Rg6+ {[%clk 0:01:06]}  Ke7 {[%clk 0:00:55]} 48. Kh6 {[%clk 0:01:06]}  Kf7 {[%clk 0:00:55]} 49. g5 {[%clk 0:01:07]}  Kf8 {[%clk 0:00:56]} 50. f5 {[%clk 0:01:08]}  Ke7 {[%clk 0:00:57]} 51. Re6+ {[%clk 0:01:07]}  Kf7 {[%clk 0:00:57]} 52. Kh7 {[%clk 0:01:08]}  Kf8 {[%clk 0:00:57]} 53. Rf6+ {[%clk 0:01:08]}  Ke7 {[%clk 0:00:57]} 54. Kg7 {[%clk 0:01:09]}  Ke8 {[%clk 0:00:58]} 55. Rf7 {[%clk 0:01:09]}  Kd8 {[%clk 0:00:59]} 56. f6 {[%clk 0:01:10]}  Ke8 {[%clk 0:00:59]} 57. g6 {[%clk 0:01:11]}  Kd8 {[%clk 0:01:00]} 58. Kh7 {[%clk 0:01:12]}  Ke8 {[%clk 0:01:01]} 59. Kh6 {[%clk 0:01:12]}  Kd8 {[%clk 0:01:02]} 60. g7 {[%clk 0:01:13]}  Ke8 {[%clk 0:01:03]} 61. Kg6 {[%clk 0:01:14]}  Kd8 {[%clk 0:01:04]} 62. g8=Q# {[%clk 0:01:15]} 1-0


[Site "https://www.chess.com"]

[Event "Titled Tuesday Blitz July 4 Late 2023"]
[White "Chigaev, Maksim"]
[Black "D`Arruda, Ricardo D."]
[WhiteFideId "4108116"]
[BlackFideId "100692"]
[WhiteElo "2943"]
[BlackElo "2552"]
[Result "1-0"]
[Round "2"]
[TimeControl "180+2"]
[Date "2023.07.04"]
[WhiteClock "0:00:50"]
[BlackClock "0:01:33"]
[Board "24"]

1. e4 {[%clk 0:03:00]}  c5 {[%clk 0:02:59]} 2. Nf3 {[%clk 0:03:01]}  Nc6 {[%clk 0:02:59]} 3. Bb5 {[%clk 0:02:58]}  g6 {[%clk 0:02:58]} 4. O-O {[%clk 0:02:58]}  Bg7 {[%clk 0:02:57]} 5. Re1 {[%clk 0:02:58]}  Nf6 {[%clk 0:02:56]} 6. c3 {[%clk 0:02:58]}  O-O {[%clk 0:02:56]} 7. h3 {[%clk 0:02:59]}  d6 {[%clk 0:02:52]} 8. d4 {[%clk 0:02:56]}  cxd4 {[%clk 0:02:51]} 9. cxd4 {[%clk 0:02:56]}  Bd7 {[%clk 0:02:51]} 10. Nc3 {[%clk 0:02:55]}  a6 {[%clk 0:02:50]} 11. Bd3 {[%clk 0:02:51]}  e5 {[%clk 0:02:45]} 12. d5 {[%clk 0:02:42]}  Ne7 {[%clk 0:02:40]} 13. a4 {[%clk 0:02:39]}  Qc7 {[%clk 0:02:37]} 14. Be3 {[%clk 0:02:35]}  Rac8 {[%clk 0:02:37]} 15. a5 {[%clk 0:02:34]}  Nh5 {[%clk 0:02:35]} 16. Nd2 {[%clk 0:02:32]}  Nf4 {[%clk 0:02:34]} 17. Bf1 {[%clk 0:02:32]}  f5 {[%clk 0:02:33]} 18. Nc4 {[%clk 0:02:29]}  fxe4 {[%clk 0:02:24]} 19. Nb6 {[%clk 0:02:09]}  Rcd8 {[%clk 0:02:24]} 20. Rc1 {[%clk 0:02:07]}  Qb8 {[%clk 0:02:23]} 21. Nxd7 {[%clk 0:01:55]}  Rxd7 {[%clk 0:02:24]} 22. Nxe4 {[%clk 0:01:56]}  Nf5 {[%clk 0:02:20]} 23. Ng5 {[%clk 0:01:42]}  Nxe3 {[%clk 0:02:10]} 24. fxe3 {[%clk 0:01:43]}  Nh5 {[%clk 0:02:08]} 25. Ne6 {[%clk 0:01:40]}  Rc8 {[%clk 0:02:05]} 26. Be2 {[%clk 0:01:14]}  Nf6 {[%clk 0:02:01]} 27. Qa4 {[%clk 0:01:09]}  Rxc1 {[%clk 0:01:57]} 28. Rxc1 {[%clk 0:01:08]}  Bh6 {[%clk 0:01:57]} 29. Rc3 {[%clk 0:01:04]}  Nxd5 {[%clk 0:01:52]} 30. Qxd7 {[%clk 0:01:02]}  Nxc3 {[%clk 0:01:51]} 31. bxc3 {[%clk 0:01:01]}  Bxe3+ {[%clk 0:01:50]} 32. Kh1 {[%clk 0:01:01]}  Bh6 {[%clk 0:01:51]} 33. Bc4 {[%clk 0:00:59]}  Kh8 {[%clk 0:01:50]} 34. Nd8 {[%clk 0:00:58]}  Bf8 {[%clk 0:01:33]} 35. Qf7 {[%clk 0:00:50]} 1-0


[Site "https://www.chess.com"]

[Event "Titled Tuesday Blitz July 4 Late 2023"]
[White "Keymer, Vincent"]
[Black "Besedes, Danilo"]
[WhiteFideId "12940690"]
[BlackFideId "946796"]
[WhiteElo "2940"]
[BlackElo "2547"]
[Result "1-0"]
[Round "2"]
[TimeControl "180+2"]
[Date "2023.07.04"]
[WhiteClock "0:00:17"]
[BlackClock "0:00:10"]
[Board "26"]

1. a3 {[%clk 0:03:00]}  e5 {[%clk 0:02:56]} 2. c4 {[%clk 0:03:00]}  Nf6 {[%clk 0:02:55]} 3. d3 {[%clk 0:03:00]}  Nc6 {[%clk 0:02:55]} 4. Nf3 {[%clk 0:03:00]}  d5 {[%clk 0:02:55]} 5. cxd5 {[%clk 0:02:59]}  Nxd5 {[%clk 0:02:56]} 6. e4 {[%clk 0:03:00]}  Nf6 {[%clk 0:02:51]} 7. Be2 {[%clk 0:02:59]}  Be7 {[%clk 0:02:50]} 8. Be3 {[%clk 0:02:57]}  O-O {[%clk 0:02:48]} 9. O-O {[%clk 0:02:57]}  Bg4 {[%clk 0:02:42]} 10. Nbd2 {[%clk 0:02:56]}  a5 {[%clk 0:02:39]} 11. Rc1 {[%clk 0:02:55]}  Re8 {[%clk 0:02:33]} 12. h3 {[%clk 0:02:53]}  Bh5 {[%clk 0:02:25]} 13. Qb3 {[%clk 0:02:41]}  Rb8 {[%clk 0:02:19]} 14. Qb5 {[%clk 0:02:37]}  Nd7 {[%clk 0:02:07]} 15. Rfd1 {[%clk 0:02:32]}  Bf6 {[%clk 0:01:46]} 16. Nf1 {[%clk 0:02:18]}  Bxf3 {[%clk 0:01:44]} 17. Bxf3 {[%clk 0:02:19]}  Nd4 {[%clk 0:01:44]} 18. Bxd4 {[%clk 0:02:19]}  exd4 {[%clk 0:01:44]} 19. Qxa5 {[%clk 0:02:19]}  c6 {[%clk 0:01:41]} 20. Qxd8 {[%clk 0:02:18]}  Rbxd8 {[%clk 0:01:41]} 21. Bg4 {[%clk 0:02:17]}  Ne5 {[%clk 0:01:39]} 22. f4 {[%clk 0:02:17]}  Ng6 {[%clk 0:01:37]} 23. g3 {[%clk 0:02:17]}  Be7 {[%clk 0:01:30]} 24. Nd2 {[%clk 0:02:17]}  Bd6 {[%clk 0:01:29]} 25. Nb3 {[%clk 0:02:10]}  Bb8 {[%clk 0:01:27]} 26. Kg2 {[%clk 0:02:07]}  h5 {[%clk 0:01:12]} 27. Bxh5 {[%clk 0:01:58]}  Bxf4 {[%clk 0:01:12]} 28. Rb1 {[%clk 0:01:53]}  Bb8 {[%clk 0:01:06]} 29. Bxg6 {[%clk 0:01:53]}  fxg6 {[%clk 0:01:06]} 30. Na5 {[%clk 0:01:53]}  Rd7 {[%clk 0:01:05]} 31. Rf1 {[%clk 0:01:52]}  Re5 {[%clk 0:01:04]} 32. Nc4 {[%clk 0:01:51]}  Rg5 {[%clk 0:01:03]} 33. g4 {[%clk 0:01:50]}  b5 {[%clk 0:01:03]} 34. Nd2 {[%clk 0:01:48]}  c5 {[%clk 0:01:03]} 35. Nf3 {[%clk 0:01:48]}  Bf4 {[%clk 0:00:57]} 36. Rbc1 {[%clk 0:01:41]}  c4 {[%clk 0:00:50]} 37. Nxg5 {[%clk 0:01:32]}  Bxg5 {[%clk 0:00:48]} 38. dxc4 {[%clk 0:01:23]}  Bxc1 {[%clk 0:00:47]} 39. Rxc1 {[%clk 0:01:24]}  bxc4 {[%clk 0:00:44]} 40. Rxc4 {[%clk 0:01:25]}  d3 {[%clk 0:00:44]} 41. Rc1 {[%clk 0:01:26]}  Rb7 {[%clk 0:00:43]} 42. b4 {[%clk 0:01:26]}  Ra7 {[%clk 0:00:43]} 43. Ra1 {[%clk 0:01:09]}  d2 {[%clk 0:00:29]} 44. Rd1 {[%clk 0:01:08]}  Rxa3 {[%clk 0:00:29]} 45. Rxd2 {[%clk 0:01:09]}  Rb3 {[%clk 0:00:29]} 46. Rd8+ {[%clk 0:00:56]}  Kf7 {[%clk 0:00:29]} 47. Rb8 {[%clk 0:00:49]}  Re3 {[%clk 0:00:28]} 48. Rb7+ {[%clk 0:00:45]}  Kf6 {[%clk 0:00:28]} 49. Rb8 {[%clk 0:00:20]}  Rxe4 {[%clk 0:00:26]} 50. Kf3 {[%clk 0:00:20]}  Rc4 {[%clk 0:00:26]} 51. h4 {[%clk 0:00:21]}  Rc3+ {[%clk 0:00:25]} 52. Ke2 {[%clk 0:00:19]}  Rc4 {[%clk 0:00:26]} 53. g5+ {[%clk 0:00:19]}  Kf7 {[%clk 0:00:25]} 54. b5 {[%clk 0:00:18]}  Rxh4 {[%clk 0:00:25]} 55. b6 {[%clk 0:00:19]}  Rb4 {[%clk 0:00:26]} 56. Kd3 {[%clk 0:00:19]}  Rb5 {[%clk 0:00:22]} 57. Kc4 {[%clk 0:00:20]}  Rb1 {[%clk 0:00:21]} 58. Kd5 {[%clk 0:00:20]}  Ke7 {[%clk 0:00:19]} 59. Kc6 {[%clk 0:00:19]}  Rc1+ {[%clk 0:00:20]} 60. Kb7 {[%clk 0:00:20]}  Ke6 {[%clk 0:00:19]} 61. Rc8 {[%clk 0:00:17]}  Rb1 {[%clk 0:00:19]} 62. Rc7 {[%clk 0:00:15]}  Kf5 {[%clk 0:00:19]} 63. Rc5+ {[%clk 0:00:16]}  Kg4 {[%clk 0:00:18]} 64. Kc7 {[%clk 0:00:17]}  Rf1 {[%clk 0:00:15]} 65. b7 {[%clk 0:00:16]}  Rf7+ {[%clk 0:00:15]} 66. Kb6 {[%clk 0:00:16]}  Rf8 {[%clk 0:00:15]} 67. Ka7 {[%clk 0:00:17]}  Rf7 {[%clk 0:00:10]} 68. Ka8 {[%clk 0:00:17]} 1-0


[Site "https://www.chess.com"]

[Event "Titled Tuesday Blitz July 4 Late 2023"]
[White "Storme, Isak"]
[Black "Ibrahimli, Murad"]
[WhiteFideId "1728113"]
[BlackFideId "13410229"]
[WhiteElo "2546"]
[BlackElo "2916"]
[Result "0-1"]
[Round "2"]
[TimeControl "180+2"]
[Date "2023.07.04"]
[WhiteClock "0:00:11"]
[BlackClock "0:00:41"]
[Board "28"]

1. e4 {[%clk 0:02:27]}  c6 {[%clk 0:02:58]} 2. Nf3 {[%clk 0:02:27]}  d5 {[%clk 0:02:59]} 3. d3 {[%clk 0:02:28]}  Bg4 {[%clk 0:02:58]} 4. h3 {[%clk 0:02:27]}  Bh5 {[%clk 0:02:58]} 5. g4 {[%clk 0:02:20]}  Bg6 {[%clk 0:02:57]} 6. Qe2 {[%clk 0:02:18]}  Nd7 {[%clk 0:02:54]} 7. Nh4 {[%clk 0:02:17]}  e6 {[%clk 0:02:50]} 8. Nxg6 {[%clk 0:02:15]}  hxg6 {[%clk 0:02:51]} 9. Bg2 {[%clk 0:02:14]}  dxe4 {[%clk 0:02:44]} 10. dxe4 {[%clk 0:02:14]}  e5 {[%clk 0:02:44]} 11. g5 {[%clk 0:02:05]}  Nc5 {[%clk 0:02:41]} 12. h4 {[%clk 0:02:03]}  Ne6 {[%clk 0:02:41]} 13. Qg4 {[%clk 0:01:56]}  Nd4 {[%clk 0:02:37]} 14. Qd1 {[%clk 0:01:51]}  Qa5+ {[%clk 0:02:34]} 15. Bd2 {[%clk 0:01:46]}  Qc5 {[%clk 0:02:34]} 16. c3 {[%clk 0:01:44]}  Ne6 {[%clk 0:02:34]} 17. Be3 {[%clk 0:01:43]}  Qb5 {[%clk 0:02:34]} 18. Qe2 {[%clk 0:01:42]}  Qxe2+ {[%clk 0:02:34]} 19. Kxe2 {[%clk 0:01:43]}  Bc5 {[%clk 0:02:34]} 20. Nd2 {[%clk 0:01:35]}  Bxe3 {[%clk 0:02:33]} 21. fxe3 {[%clk 0:01:36]}  f6 {[%clk 0:02:20]} 22. Nc4 {[%clk 0:01:28]}  Ke7 {[%clk 0:02:20]} 23. Rad1 {[%clk 0:01:22]}  Rd8 {[%clk 0:02:13]} 24. Rxd8 {[%clk 0:01:06]}  Nxd8 {[%clk 0:02:14]} 25. Kf3 {[%clk 0:01:01]}  Nf7 {[%clk 0:02:11]} 26. Kg4 {[%clk 0:00:59]}  fxg5 {[%clk 0:01:57]} 27. hxg5 {[%clk 0:00:58]}  Rxh1 {[%clk 0:01:57]} 28. Bxh1 {[%clk 0:00:59]}  b5 {[%clk 0:01:52]} 29. Na5 {[%clk 0:00:58]}  Nd8 {[%clk 0:01:49]} 30. b4 {[%clk 0:00:48]}  Kd6 {[%clk 0:01:48]} 31. Bf3 {[%clk 0:00:47]}  Ne7 {[%clk 0:01:48]} 32. Bd1 {[%clk 0:00:43]}  c5 {[%clk 0:01:47]} 33. Nb3 {[%clk 0:00:42]}  cxb4 {[%clk 0:01:43]} 34. cxb4 {[%clk 0:00:43]}  Nec6 {[%clk 0:01:42]} 35. a3 {[%clk 0:00:43]}  Ne6 {[%clk 0:01:41]} 36. Nd2 {[%clk 0:00:42]}  a5 {[%clk 0:01:40]} 37. bxa5 {[%clk 0:00:41]}  Nxa5 {[%clk 0:01:41]} 38. Be2 {[%clk 0:00:33]}  Kc5 {[%clk 0:01:38]} 39. Nf3 {[%clk 0:00:31]}  Nc6 {[%clk 0:01:37]} 40. Bd1 {[%clk 0:00:28]}  Kd6 {[%clk 0:01:20]} 41. Bb3 {[%clk 0:00:28]}  Nc5 {[%clk 0:01:20]} 42. Bf7 {[%clk 0:00:27]}  Nxe4 {[%clk 0:01:18]} 43. Bxg6 {[%clk 0:00:28]}  Nf2+ {[%clk 0:01:17]} 44. Kg3 {[%clk 0:00:28]}  Nd1 {[%clk 0:01:17]} 45. Nd2 {[%clk 0:00:28]}  Nxe3 {[%clk 0:01:16]} 46. Kf3 {[%clk 0:00:26]}  Nc4 {[%clk 0:01:13]} 47. Ne4+ {[%clk 0:00:24]}  Kc7 {[%clk 0:01:09]} 48. Bf7 {[%clk 0:00:20]}  Nd4+ {[%clk 0:01:06]} 49. Kg4 {[%clk 0:00:19]}  Nxa3 {[%clk 0:01:07]} 50. Nc3 {[%clk 0:00:17]}  Kd6 {[%clk 0:01:05]} 51. Kh5 {[%clk 0:00:14]}  b4 {[%clk 0:01:02]} 52. Ne4+ {[%clk 0:00:14]}  Ke7 {[%clk 0:01:01]} 53. Kg6 {[%clk 0:00:13]}  b3 {[%clk 0:00:56]} 54. Kxg7 {[%clk 0:00:11]}  b2 {[%clk 0:00:52]} 55. Nc3 {[%clk 0:00:12]}  b1=Q {[%clk 0:00:50]} 56. Nxb1 {[%clk 0:00:11]}  Nxb1 {[%clk 0:00:51]} 57. g6 {[%clk 0:00:10]}  Nf5+ {[%clk 0:00:51]} 58. Kh7 {[%clk 0:00:09]}  Kf6 {[%clk 0:00:52]} 59. Bb3 {[%clk 0:00:08]}  Nc3 {[%clk 0:00:51]} 60. Bc2 {[%clk 0:00:08]}  Ng7 {[%clk 0:00:52]} 61. Kh6 {[%clk 0:00:08]}  Nd5 {[%clk 0:00:51]} 62. Kh7 {[%clk 0:00:09]}  Nf4 {[%clk 0:00:51]} 63. Be4 {[%clk 0:00:09]}  Nh3 {[%clk 0:00:51]} 64. Bb1 {[%clk 0:00:10]}  Ng5+ {[%clk 0:00:51]} 65. Kh6 {[%clk 0:00:10]}  N5e6 {[%clk 0:00:52]} 66. Kh7 {[%clk 0:00:10]}  Ne8 {[%clk 0:00:52]} 67. Kg8 {[%clk 0:00:09]}  Nd6 {[%clk 0:00:52]} 68. Kh7 {[%clk 0:00:10]}  Nf5 {[%clk 0:00:53]} 69. Ba2 {[%clk 0:00:10]}  Nf8+ {[%clk 0:00:52]} 70. Kg8 {[%clk 0:00:10]}  Nxg6 {[%clk 0:00:53]} 71. Bb1 {[%clk 0:00:10]}  Nge7+ {[%clk 0:00:53]} 72. Kf8 {[%clk 0:00:10]}  Nc6 {[%clk 0:00:53]} 73. Ke8 {[%clk 0:00:10]}  Ke6 {[%clk 0:00:53]} 74. Ba2+ {[%clk 0:00:10]}  Kd6 {[%clk 0:00:54]} 75. Bb1 {[%clk 0:00:11]}  Ng3 {[%clk 0:00:52]} 76. Kf7 {[%clk 0:00:11]}  Kd5 {[%clk 0:00:52]} 77. Kf6 {[%clk 0:00:12]}  Kd4 {[%clk 0:00:52]} 78. Kg5 {[%clk 0:00:12]}  Ne4+ {[%clk 0:00:53]} 79. Kf5 {[%clk 0:00:12]}  Nd2 {[%clk 0:00:53]} 80. Ba2 {[%clk 0:00:12]}  e4 {[%clk 0:00:53]} 81. Bf7 {[%clk 0:00:10]}  Ne7+ {[%clk 0:00:52]} 82. Kf4 {[%clk 0:00:09]}  Nd5+ {[%clk 0:00:52]} 83. Kg3 {[%clk 0:00:09]}  Nf6 {[%clk 0:00:52]} 84. Kf2 {[%clk 0:00:08]}  e3+ {[%clk 0:00:53]} 85. Ke2 {[%clk 0:00:08]}  Nde4 {[%clk 0:00:53]} 86. Bg6 {[%clk 0:00:08]}  Ng3+ {[%clk 0:00:53]} 87. Ke1 {[%clk 0:00:08]}  Ke5 {[%clk 0:00:51]} 88. Bb1 {[%clk 0:00:09]}  Kf4 {[%clk 0:00:51]} 89. Bd3 {[%clk 0:00:09]}  Ne8 {[%clk 0:00:50]} 90. Ba6 {[%clk 0:00:09]}  Nd6 {[%clk 0:00:51]} 91. Kd1 {[%clk 0:00:09]}  Ndf5 {[%clk 0:00:51]} 92. Ke1 {[%clk 0:00:09]}  Nd4 {[%clk 0:00:52]} 93. Bd3 {[%clk 0:00:09]}  Nf3+ {[%clk 0:00:49]} 94. Kd1 {[%clk 0:00:09]}  Ne4 {[%clk 0:00:47]} 95. Ba6 {[%clk 0:00:10]}  Nc3+ {[%clk 0:00:48]} 96. Kc2 {[%clk 0:00:09]}  Nd5 {[%clk 0:00:48]} 97. Kd1 {[%clk 0:00:10]}  Ke4 {[%clk 0:00:46]} 98. Bb5 {[%clk 0:00:09]}  Kd4 {[%clk 0:00:46]} 99. Ba6 {[%clk 0:00:09]}  Ne5 {[%clk 0:00:46]} 100. Ke1 {[%clk 0:00:09]}  Nf4 {[%clk 0:00:47]} 101. Bf1 {[%clk 0:00:08]}  Nc4 {[%clk 0:00:43]} 102. Kd1 {[%clk 0:00:09]}  Nd3 {[%clk 0:00:40]} 103. Be2 {[%clk 0:00:09]}  Ncb2+ {[%clk 0:00:36]} 104. Kc2 {[%clk 0:00:09]}  Nf4 {[%clk 0:00:37]} 105. Ba6 {[%clk 0:00:08]}  Nbd3 {[%clk 0:00:38]} 106. Kd1 {[%clk 0:00:08]}  e2+ {[%clk 0:00:38]} 107. Kd2 {[%clk 0:00:09]}  e1=Q+ {[%clk 0:00:38]} 108. Kc2 {[%clk 0:00:10]}  Qc1+ {[%clk 0:00:39]} 109. Kb3 {[%clk 0:00:10]}  Qb2+ {[%clk 0:00:40]} 110. Ka4 {[%clk 0:00:11]}  Qb4# {[%clk 0:00:41]} 0-1


[Site "https://www.chess.com"]

[Event "Titled Tuesday Blitz July 4 Late 2023"]
[White "Gasparyan, David"]
[Black "Durarbayli, Vasif"]
[WhiteFideId "13311980"]
[BlackFideId "13402935"]
[WhiteElo "2545"]
[BlackElo "2912"]
[Result "0-1"]
[Round "2"]
[TimeControl "180+2"]
[Date "2023.07.04"]
[WhiteClock "0:01:21"]
[BlackClock "0:01:26"]
[Board "29"]

1. Nf3 {[%clk 0:03:00]}  c5 {[%clk 0:02:56]} 2. g3 {[%clk 0:03:00]}  Nc6 {[%clk 0:02:56]} 3. Bg2 {[%clk 0:03:01]}  g6 {[%clk 0:02:56]} 4. O-O {[%clk 0:03:01]}  Bg7 {[%clk 0:02:57]} 5. d3 {[%clk 0:03:01]}  e5 {[%clk 0:02:56]} 6. Nc3 {[%clk 0:03:01]}  Nge7 {[%clk 0:02:56]} 7. e4 {[%clk 0:03:01]}  d6 {[%clk 0:02:53]} 8. h3 {[%clk 0:02:46]}  h6 {[%clk 0:02:51]} 9. Be3 {[%clk 0:02:44]}  Be6 {[%clk 0:02:51]} 10. Ne2 {[%clk 0:02:44]}  Qd7 {[%clk 0:02:51]} 11. Kh2 {[%clk 0:02:44]}  f5 {[%clk 0:02:34]} 12. c3 {[%clk 0:02:31]}  O-O {[%clk 0:02:30]} 13. Nd2 {[%clk 0:02:27]}  f4 {[%clk 0:02:17]} 14. gxf4 {[%clk 0:02:12]}  exf4 {[%clk 0:02:17]} 15. Bxf4 {[%clk 0:02:00]}  Rxf4 {[%clk 0:02:16]} 16. Nxf4 {[%clk 0:02:01]}  Be5 {[%clk 0:02:17]} 17. Qf3 {[%clk 0:01:40]}  Rf8 {[%clk 0:02:14]} 18. Kh1 {[%clk 0:01:39]}  Bxf4 {[%clk 0:02:01]} 19. Nc4 {[%clk 0:01:39]}  b5 {[%clk 0:01:58]} 20. Ne3 {[%clk 0:01:38]}  Ne5 {[%clk 0:01:58]} 21. Qe2 {[%clk 0:01:37]}  Bxh3 {[%clk 0:01:53]} 22. Rg1 {[%clk 0:01:36]}  Bxg2+ {[%clk 0:01:39]} 23. Rxg2 {[%clk 0:01:33]}  Qh3+ {[%clk 0:01:38]} 24. Kg1 {[%clk 0:01:21]}  Nf3+ {[%clk 0:01:26]} 0-1


[Site "https://www.chess.com"]